fUST/lending_fUST_20250615
["ID","MTS","AMOUNT","RATE_DAILY","PERIOD"]
[365848362,1749957037437,-460.0,0.00022191,4]
[365848363,1749957037446,-460.0,0.00022191,4]
[365848364,1749957037455,-314.484381,0.00022191,4]
[365848365,1749957037464,-460.0,0.00022191,4]
[365848366,1749957037474,-373.04894642,0.00022191,4]
[365848367,1749957037483,-390.48604889,0.00022191,4]
[365848368,1749957037493,-408.20857893,0.00022191,4]
[365848369,1749957037502,-460.0,0.00022191,4]
[365848370,1749957037511,-754.2,0.00022191,4]
[365848371,1749957037521,-416.23545068,0.00022191,4]
[365848372,1749957037530,-460.0,0.00022191,4]
[365848373,1749957037541,-396.82458354,0.00022191,4]
[365848374,1749957037550,-460.0,0.00022191,4]
[365848375,1749957037563,-460.0,0.00022191,4]
[365848376,1749957037572,-460.0,0.00022191,4]
[365848377,1749957037582,-460.0,0.00022191,4]
[365848378,1749957037591,-320.0,0.00022191,4]
[365848379,1749957037602,-460.0,0.00022191,4]
[365848380,1749957037612,-460.0,0.00022191,4]
[365848381,1749957037621,-461.5254113,0.00022191,4]
[365848382,1749957037634,-460.0,0.00022191,4]
[365848383,1749957037643,-300.1787773,0.00022191,4]
[365848384,1749957037653,-460.0,0.00022191,4]
[365848385,1749957037662,-460.0,0.00022191,4]
[365848386,1749957037671,-460.0,0.00022191,4]
[365848387,1749957037681,-460.0,0.00022191,4]
[365848388,1749957037690,-202.94598493,0.00022191,4]
[365848389,1749957037699,-460.0,0.00022191,4]
[365848390,1749957037711,-1935.04,0.00022191,4]
[365848391,1749957037721,-489.55,0.00022191,2]
[365848392,1749957037730,-320.0,0.00022191,4]
[365848393,1749957037739,-460.0,0.00022191,4]
[365848394,1749957037749,-2556.6,0.00022191,4]
[365848395,1749957037758,-534.69,0.00022191,4]
[365848396,1749957037767,-460.0,0.00022191,4]
[365848397,1749957037776,-460.0,0.00022191,4]
[365848398,1749957037785,-786.61,0.00022191,4]
[365848399,1749957037795,-460.0,0.00022191,4]
[365848400,1749957037804,-424.90530465,0.00022191,4]
[365848401,1749957037813,-460.73718025,0.00022191,4]
[365848402,1749957037823,-589.1219153,0.00022191,4]
[365848403,1749957037834,-460.0,0.00022191,4]
[365848404,1749957037844,-835.23,0.00022191,4]
[365848405,1749957037853,-567.76,0.00022191,4]
[365848406,1749957037863,-460.0,0.00022191,4]
[365848407,1749957037873,-460.0,0.00022191,4]
[365848408,1749957037882,-624.12,0.00022191,4]
[365848409,1749957037892,-460.0,0.00022191,4]
[365848410,1749957037903,-460.0,0.00022191,4]
[365848411,1749957037913,-511.65,0.00022191,4]
[365848412,1749957037924,-460.0,0.00022191,4]
[365848413,1749957037933,-460.0,0.00022191,4]
[365848414,1749957037943,-428.19542333,0.00022191,4]
[365848415,1749957037952,-404.22421035,0.00022191,4]
[365848416,1749957037963,-2269.01,0.00022191,4]
[365848417,1749957037972,-698.94,0.00022191,4]
[365848418,1749957037981,-403.20952042,0.00022191,4]
[365848419,1749957037990,-460.0,0.00022191,4]
[365848420,1749957038000,-4037.64,0.00022191,4]
[365848421,1749957038010,-2862.62,0.00022191,4]
[365848422,1749957038020,-460.0,0.00022191,4]
[365848423,1749957038029,-401.96012066,0.00022191,4]
[365848425,1749957038039,-3366.67,0.00022191,4]
[365848427,1749957038048,-434.89114875,0.00022191,4]
[365848429,1749957038057,-403.08739963,0.00022191,4]
[365848430,1749957038067,-928.5,0.00022191,4]
[365848433,1749957038077,-460.0,0.00022191,4]
[365848434,1749957038086,-460.0,0.00022191,4]
[365848436,1749957038095,-3798.54,0.00022191,4]
[365848438,1749957038105,-840.17,0.00022191,4]
[365848440,1749957038114,-460.0,0.00022191,4]
[365848442,1749957038125,-426.14920417,0.00022191,4]
[365848444,1749957038134,-431.93178584,0.00022191,4]
[365848446,1749957038144,-460.0,0.00022191,4]
[365848448,1749957038153,-460.0,0.00022191,4]
[365848450,1749957038162,-405.50847958,0.00022191,4]
[365848452,1749957038171,-496.35472382,0.00022191,4]
[365848454,1749957038181,-402.16178248,0.00022191,4]
[365848456,1749957038190,-4684.17,0.00022191,4]
[365848458,1749957038199,-408.74046938,0.00022191,4]
[365848460,1749957038208,-460.0,0.00022191,4]
[365848462,1749957038218,-460.0,0.00022191,4]
[365848464,1749957038227,-407.47066948,0.00022191,4]
[365848466,1749957038236,-296.97777241,0.00022191,4]
[365848468,1749957038246,-460.0,0.00022191,4]
[365848469,1749957038255,-460.0,0.00022191,4]
[365848471,1749957038264,-1265.76,0.00022191,4]
[365848473,1749957038273,-460.0,0.00022191,4]
[365848474,1749957038283,-434.12493194,0.00022191,4]
[365848476,1749957038292,-460.0,0.00022191,4]
[365848477,1749957038302,-1633.92,0.00022191,4]
[365848479,1749957038311,-856.87,0.00022191,4]
[365848481,1749957038320,-460.0,0.00022191,4]
[365848483,1749957038332,-460.0,0.00022191,4]
[365848485,1749957038342,-460.0,0.00022191,4]
[365848487,1749957038351,-1992.96,0.00022191,4]
[365848489,1749957038360,-460.0,0.00022191,4]
[365848491,1749957038373,-460.0,0.00022191,4]
[365848493,1749957038383,-982.09,0.00022191,4]
[365848495,1749957038392,-460.0,0.00022191,4]
[365848497,1749957038402,-460.0,0.00022191,4]
[365848499,1749957038411,-585.25,0.00022191,4]
[365848501,1749957038421,-669.0,0.00022191,4]
[365848503,1749957038430,-460.0,0.00022191,4]
[365848505,1749957038440,-783.8,0.00022191,4]
[365848507,1749957038449,-460.0,0.00022191,4]
[365848509,1749957038459,-1785.55,0.00022191,4]
[365848511,1749957038468,-392.03568537,0.00022191,4]
[365848513,1749957038478,-303.71363887,0.00022191,4]
[365848515,1749957038487,-573.55,0.00022191,4]
[365848517,1749957038497,-460.0,0.00022191,4]
[365848519,1749957038506,-460.0,0.00022191,4]
[365848521,1749957038516,-460.0,0.00022191,4]
[365848523,1749957038525,-460.0,0.00022191,4]
[365848525,1749957038535,-460.0,0.00022191,4]
[365848527,1749957038544,-460.0,0.00022191,4]
[365848529,1749957038554,-337.07772186,0.00022191,4]
[365848531,1749957038565,-460.0,0.00022191,4]
[365848533,1749957038575,-460.0,0.00022191,4]
[365848535,1749957038584,-460.0,0.00022191,4]
[365848537,1749957038593,-2026.74,0.00022191,4]
[365848539,1749957038605,-406.44953109,0.00022191,4]
[365848541,1749957038614,-460.0,0.00022191,4]
[365848543,1749957038624,-504.91,0.00022191,4]
[365848545,1749957038635,-350.0283299,0.00022191,4]
[365848547,1749957038647,-460.0,0.00022191,4]
[365848549,1749957038656,-418.06887411,0.00022191,4]
[365848551,1749957038665,-460.0,0.00022191,4]
[365848553,1749957038675,-576.52,0.00022191,4]
[365848555,1749957038684,-623.27,0.00022191,4]
[365848557,1749957038694,-581.42,0.00022191,4]
[365848559,1749957038704,-935.69,0.00022191,4]
[365848561,1749957038713,-593.12,0.00022191,4]
[365848563,1749957038722,-420.0,0.00022191,4]
[365848565,1749957038732,-460.0,0.00022191,4]
[365848567,1749957038741,-460.0,0.00022191,4]
[365848568,1749957038751,-417.80916846,0.00022191,4]
[365848569,1749957038761,-155.22755187,0.00022191,4]
[365848570,1749957038771,-460.0,0.00022191,4]
[365848572,1749957038780,-460.0,0.00022191,4]
[365848574,1749957038790,-460.0,0.00022191,4]
[365848576,1749957038799,-3148.79,0.00022191,4]
[365848577,1749957038808,-460.0,0.00022191,4]
[365848579,1749957038817,-430.0,0.00022191,4]
[365848580,1749957038826,-460.0,0.00022191,4]
[365848582,1749957038836,-2007.11,0.00022191,4]
[365848584,1749957038845,-1299.81,0.00022191,4]
[365848585,1749957038855,-603.71,0.00022191,4]
[365848586,1749957038866,-460.0,0.00022191,4]
[365848587,1749957038875,-446.49333193,0.00022191,4]
[365848588,1749957038887,-460.0,0.00022191,4]
[365848589,1749957038897,-460.0,0.00022191,4]
[365848590,1749957038907,-460.0,0.00022191,4]
[365848591,1749957038916,-621.56,0.00022191,4]
[365848592,1749957038926,-438.82868839,0.00022191,4]
[365848593,1749957038936,-460.0,0.00022191,4]
[365848594,1749957038946,-460.0,0.00022191,4]
[365848595,1749957038955,-460.0,0.00022191,4]
[365848596,1749957038965,-460.0,0.00022191,4]
[365848597,1749957038975,-429.72042974,0.00022191,4]
[365848598,1749957038984,-460.0,0.00022191,4]
[365848599,1749957038994,-460.0,0.00022191,4]
[365848600,1749957039003,-460.0,0.00022191,4]
[365848601,1749957039013,-188.48793364,0.00022191,4]
[365848602,1749957039023,-460.0,0.00022191,4]
[365848603,1749957039033,-406.95569456,0.00022191,4]
[365848604,1749957039042,-1217.29,0.00022191,4]
[365848605,1749957039052,-2123.16,0.00022191,4]
[365848606,1749957039062,-508.57894298,0.00022191,4]
[365848607,1749957039072,-460.0,0.00022191,4]
[365848608,1749957039082,-644.4,0.00022191,4]
[365848609,1749957039091,-460.0,0.00022191,4]
[365848610,1749957039101,-460.0,0.00022191,4]
[365848611,1749957039110,-500.0,0.00022199,4]
[365848612,1749957039120,-577.13978153,0.00022199,4]
[365848613,1749957039130,-13903.63517941,0.000222,2]
[365848614,1749957039140,-23529.06172515,0.000222,2]
[365848615,1749957039151,-82521.88,0.000222,7]
[365848616,1749957039160,-845.25843836,0.000222,7]
[365848617,1749957039170,-160.0,0.00022234,2]
[365848618,1749957039180,-160.0,0.00022234,2]
[365848619,1749957039189,-835.55256958,0.00022234,2]
[365848620,1749957039199,-213.32089821,0.00022234,2]
[365848621,1749957039209,-160.0,0.00022234,2]
[365848622,1749957039219,-160.0,0.00022234,2]
[365848623,1749957039228,-500.0,0.0002225,2]
[365848624,1749957039238,-207.4,0.00022284,2]
[365848625,1749957039247,-300.2152317,0.00022318,2]
[365848626,1749957039257,-168.0,0.00022372,2]
[365848627,1749957039267,-25466.55995291,0.00022463,2]
[365848628,1749957039276,-500.0,0.00022465,4]
[365848629,1749957039285,-460.0,0.00022465,4]
[365848630,1749957039294,-460.0,0.00022465,4]
[365848631,1749957039305,-460.0,0.00022465,4]
[365848632,1749957039314,-460.0,0.00022465,4]
[365848633,1749957039324,-460.0,0.00022465,4]
[365848634,1749957039333,-460.0,0.00022465,4]
[365848635,1749957039343,-460.0,0.00022465,4]
[365848636,1749957039352,-460.0,0.00022465,4]
[365848637,1749957039362,-460.0,0.00022465,4]
[365848638,1749957039373,-460.0,0.00022465,4]
[365848639,1749957039539,-460.0,0.00022465,4]
[365848640,1749957039551,-447.97647809,0.00022465,4]
[365848641,1749957039565,-460.0,0.00022465,4]
[365848642,1749957039576,-460.0,0.00022465,4]
[365848643,1749957039585,-516.70889776,0.00022465,4]
[365848644,1749957039595,-460.0,0.00022465,4]
[365848645,1749957039607,-460.0,0.00022465,4]
[365848646,1749957039617,-460.0,0.00022465,4]
[365848647,1749957039626,-460.0,0.00022465,4]
[365848648,1749957039639,-167.50055988,0.00022465,4]
[365848649,1749957039648,-460.0,0.00022465,4]
[365848650,1749957039658,-460.0,0.00022465,4]
[365848651,1749957039668,-445.00232136,0.00022465,4]
[365848652,1749957039678,-627.93,0.00022465,4]
[365848653,1749957039688,-597.34,0.00022465,4]
[365848654,1749957039698,-460.0,0.00022465,4]
[365848655,1749957039708,-460.0,0.00022465,4]
[365848656,1749957039718,-718.27,0.00022465,4]
[365848657,1749957039728,-530.22664354,0.00022465,4]
[365848658,1749957039738,-460.0,0.00022465,4]
[365848659,1749957039748,-460.0,0.00022465,4]
[365848660,1749957039758,-460.0,0.00022465,4]
[365848661,1749957039768,-370.18694244,0.00022465,4]
[365848662,1749957039778,-500.0,0.00022465,4]
[365848664,1749957039788,-460.0,0.00022465,4]
[365848666,1749957039797,-460.0,0.00022465,4]
[365848668,1749957039807,-386.69191019,0.00022465,4]
[365848670,1749957039817,-460.0,0.00022465,4]
[365848672,1749957039827,-460.0,0.00022465,4]
[365848673,1749957039837,-460.0,0.00022465,4]
[365848674,1749957039847,-182.85162516,0.00022465,4]
[365848675,1749957039856,-754.2,0.00022465,4]
[365848676,1749957039866,-460.0,0.00022465,4]
[365848677,1749957039876,-460.0,0.00022465,4]
[365848678,1749957039885,-378.28098855,0.00022465,4]
[365848679,1749957039895,-460.0,0.00022465,4]
[365848680,1749957039905,-460.0,0.00022465,4]
[365848681,1749957039914,-367.59210674,0.00022465,4]
[365848682,1749957039924,-460.0,0.00022465,4]
[365848683,1749957039933,-460.0,0.00022465,4]
[365848685,1749957039943,-373.07325901,0.00022465,4]
[365848687,1749957039952,-460.0,0.00022465,4]
[365848689,1749957039962,-341.29193099,0.00022465,4]
[365848691,1749957039971,-460.0,0.00022465,4]
[365848693,1749957039981,-460.0,0.00022465,4]
[365848695,1749957039990,-1935.04,0.00022465,4]
[365848697,1749957040001,-489.55,0.00022465,2]
[365848699,1749957040011,-460.0,0.00022465,4]
[365848701,1749957040020,-2556.6,0.00022465,4]
[365848703,1749957040030,-534.69,0.00022465,4]
[365848705,1749957040039,-373.66642742,0.00022465,4]
[365848707,1749957040049,-460.0,0.00022465,4]
[365848709,1749957040058,-786.61,0.00022465,4]
[365848711,1749957040067,-387.80007609,0.00022465,4]
[365848713,1749957040079,-460.0,0.00022465,4]
[365848715,1749957040090,-835.23,0.00022465,4]
[365848717,1749957040100,-567.76,0.00022465,4]
[365848719,1749957040109,-460.0,0.00022465,4]
[365848721,1749957040119,-460.0,0.00022465,4]
[365848723,1749957040129,-624.12,0.00022465,4]
[365848725,1749957040138,-460.0,0.00022465,4]
[365848727,1749957040148,-460.0,0.00022465,4]
[365848729,1749957040158,-511.65,0.00022465,4]
[365848731,1749957040167,-460.0,0.00022465,4]
[365848733,1749957040177,-460.0,0.00022465,4]
[365848735,1749957040187,-2269.01,0.00022465,4]
[365848737,1749957040197,-698.94,0.00022465,4]
[365848739,1749957040206,-460.0,0.00022465,4]
[365848741,1749957040215,-4037.64,0.00022465,4]
[365848743,1749957040225,-2862.62,0.00022465,4]
[365848745,1749957040235,-390.13266294,0.00022465,4]
[365848747,1749957040245,-3366.67,0.00022465,4]
[365848749,1749957040255,-928.5,0.00022465,4]
[365848751,1749957040264,-460.0,0.00022465,4]
[365848753,1749957040274,-386.12163706,0.00022465,4]
[365848755,1749957040284,-3798.54,0.00022465,4]
[365848757,1749957040294,-840.17,0.00022465,4]
[365848759,1749957040304,-372.46840768,0.00022465,4]
[365848761,1749957040314,-460.0,0.00022465,4]
[365848763,1749957040323,-543.79924584,0.00022465,4]
[365848765,1749957040334,-4684.17,0.00022465,4]
[365848767,1749957040343,-380.0,0.00022465,4]
[365848769,1749957040353,-373.93090182,0.00022465,4]
[365848771,1749957040363,-341.61786065,0.00022465,4]
[365848773,1749957040373,-414.11102821,0.00022465,4]
[365848775,1749957040382,-1265.76,0.00022465,4]
[365848777,1749957040391,-374.37674352,0.00022465,4]
[365848780,1749957040401,-460.0,0.00022465,4]
[365848782,1749957040411,-1633.92,0.00022465,4]
[365848784,1749957040420,-856.87,0.00022465,4]
[365848786,1749957040430,-460.0,0.00022465,4]
[365848788,1749957040439,-460.0,0.00022465,4]
[365848790,1749957040448,-374.25466788,0.00022465,4]
[365848792,1749957040458,-1992.96,0.00022465,4]
[365848793,1749957040468,-536.45747051,0.00022465,4]
[365848796,1749957040478,-460.0,0.00022465,4]
[365848798,1749957040489,-982.09,0.00022465,4]
[365848800,1749957040498,-460.0,0.00022465,4]
[365848802,1749957040508,-585.25,0.00022465,4]
[365848804,1749957040517,-460.0,0.00022465,4]
[365848806,1749957040529,-669.0,0.00022465,4]
[365848808,1749957040539,-460.0,0.00022465,4]
[365848810,1749957040548,-783.8,0.00022465,4]
[365848812,1749957040567,-460.0,0.00022465,4]
[365848814,1749957040578,-1785.55,0.00022465,4]
[365848816,1749957040588,-573.55,0.00022465,4]
[365848818,1749957040599,-460.0,0.00022465,4]
[365848820,1749957040608,-460.0,0.00022465,4]
[365848821,1749957040617,-460.0,0.00022465,4]
[365848822,1749957040627,-460.0,0.00022465,4]
[365848823,1749957040636,-460.0,0.00022465,4]
[365848824,1749957040647,-460.0,0.00022465,4]
[365848825,1749957040656,-343.64968081,0.00022465,4]
[365848826,1749957040805,-116.35031919,0.00022465,4]
[365848827,1749957040815,-460.0,0.00022465,4]
[365848828,1749957040824,-375.0135648,0.00022465,4]
[365848830,1749957040834,-955.60692242,0.00022465,4]
[365848832,1749957040845,-1071.13307758,0.00022465,4]
[365848834,1749957040855,-460.0,0.00022465,4]
[365848836,1749957040864,-232.23222107,0.00022465,4]
[365848838,1749957040876,-272.67777893,0.00022465,4]
[365848840,1749957040886,-460.0,0.00022465,4]
[365848842,1749957040896,-460.0,0.00022465,4]
[365848844,1749957040906,-576.52,0.00022465,4]
[365848846,1749957040915,-623.27,0.00022465,4]
[365848848,1749957040925,-581.42,0.00022465,4]
[365848850,1749957040934,-331.51708917,0.00022465,4]
[365848900,1749957041467,-460.0,0.00021917,4]
[365848902,1749957041479,-460.0,0.00021917,4]
[365848904,1749957041488,-460.0,0.00021917,4]
[365848906,1749957041498,-460.0,0.00021917,4]
[365848908,1749957041508,-460.0,0.00021917,4]
[365848911,1749957041517,-460.0,0.00022191,4]
[365848913,1749957041527,-273.73843273,0.00022191,4]
[365848915,1749957041536,-356.86,0.00022191,4]
[365848917,1749957041546,-460.0,0.00022191,4]
[365848919,1749957041558,-604.17291083,0.00022465,4]
[365848921,1749957041568,-593.12,0.00022465,4]
[365848923,1749957041578,-460.0,0.00022465,4]
[365848925,1749957041587,-460.0,0.00022465,4]
[365848927,1749957041597,-305.84188644,0.00022465,4]
[365848929,1749957041608,-460.0,0.00022465,4]
[365848930,1749957041617,-440.0,0.00022465,4]
[365848932,1749957041627,-3148.79,0.00022465,4]
[365848935,1749957041639,-460.0,0.00022465,4]
[365848937,1749957041648,-460.0,0.00022465,4]
[365848939,1749957041658,-2007.11,0.00022465,4]
[365848941,1749957041667,-1299.81,0.00022465,4]
[365848943,1749957041678,-603.71,0.00022465,4]
[365848945,1749957041688,-460.0,0.00022465,4]
[365848947,1749957041698,-460.0,0.00022465,4]
[365848949,1749957041707,-621.56,0.00022465,4]
[365848951,1749957041717,-364.70178477,0.00022465,4]
[365848953,1749957041726,-460.0,0.00022465,4]
[365848955,1749957041737,-178.14075514,0.00022465,4]
[365848957,1749957041747,-393.31332264,0.00022465,4]
[365848959,1749957041759,-460.0,0.00022465,4]
[365848961,1749957041771,-558.08,0.00022465,4]
[365848963,1749957041781,-460.0,0.00022465,4]
[365848965,1749957041791,-460.0,0.00022465,4]
[365848967,1749957041801,-1217.29,0.00022465,4]
[365848969,1749957041811,-2123.16,0.00022465,4]
[365848971,1749957041820,-460.0,0.00022465,4]
[365848973,1749957041829,-644.4,0.00022465,4]
[365848975,1749957041839,-460.0,0.00022465,4]
[365848977,1749957041848,-460.0,0.00022465,4]
[365848984,1749957041901,-460.0,0.00022465,4]
[365848986,1749957041911,-275.0,0.00022472,2]
[365848988,1749957041920,-501.60488623,0.00022473,2]
[365848990,1749957041930,-500.0,0.00022473,2]
[365848992,1749957041939,-501.64615102,0.00022473,2]
[365848994,1749957041948,-423.89848147,0.00022473,2]
[365848996,1749957041957,-500.0,0.00022473,2]
[365848998,1749957041966,-519.043125,0.00022473,2]
[365849000,1749957041976,-500.9324502,0.00022473,2]
[365849002,1749957041985,-500.0,0.00022473,2]
[365849004,1749957041995,-500.0,0.00022473,2]
[365849006,1749957042004,-500.0,0.00022473,2]
[365849008,1749957042014,-500.0,0.00022473,2]
[365849010,1749957042023,-500.0,0.00022473,2]
[365849012,1749957042033,-500.0,0.00022473,2]
[365849014,1749957042042,-600.0,0.00022473,2]
[365849016,1749957042051,-500.0,0.00022473,2]
[365849018,1749957042060,-500.0,0.00022473,2]
[365849020,1749957042069,-500.0,0.00022473,2]
[365849021,1749957042079,-500.0,0.00022473,2]
[365849024,1749957042089,-500.0,0.00022473,2]
[365849025,1749957042098,-380.68902381,0.00022473,2]
[365849027,1749957042107,-887.47691889,0.00022509,2]
[365849029,1749957042116,-156.8421927,0.00022548,2]
[365849031,1749957042127,-156.5325547,0.00022548,2]
[365849033,1749957042137,-573.8932911,0.00022548,2]
[365849035,1749957042149,-178.5734465,0.00022548,2]
[365849037,1749957042159,-158.9019424,0.00022548,2]
[365849040,1749957042169,-158.9019424,0.00022548,2]
[365849042,1749957042179,-177.0323298,0.00022548,2]
[365849044,1749957042194,-573.8932911,0.00022548,2]
[365849046,1749957042203,-153.0,0.00022548,2]
[365849047,1749957042213,-153.0,0.00022548,2]
[365849049,1749957042223,-158.9019424,0.00022548,2]
[365849052,1749957042234,-153.0,0.00022548,2]
[365849053,1749957042243,-177.0323298,0.00022548,2]
[365849055,1749957042253,-573.8932911,0.00022548,2]
[365849057,1749957042262,-153.0,0.00022548,2]
[365849060,1749957042272,-177.0323298,0.00022548,2]
[365849062,1749957042281,-573.8932911,0.00022548,2]
[365849064,1749957042291,-158.9019424,0.00022548,2]
[365849066,1749957042301,-158.9019424,0.00022548,2]
[365849068,1749957042310,-153.0,0.00022548,2]
[365849070,1749957042318,-177.0323298,0.00022548,2]
[365849072,1749957042327,-153.0,0.00022548,2]
[365849074,1749957042337,-573.8932911,0.00022548,2]
[365849076,1749957042346,-158.9019424,0.00022548,2]
[365849078,1749957042355,-177.0323298,0.00022548,2]
[365849080,1749957042365,-573.8932911,0.00022548,2]
[365849082,1749957042375,-153.0,0.00022548,2]
[365849084,1749957042384,-177.0323298,0.00022548,2]
[365849085,1749957042395,-573.8932911,0.00022548,2]
[365849086,1749957042405,-158.9019424,0.00022548,2]
[365849087,1749957042414,-153.0,0.00022548,2]
[365849088,1749957042424,-158.9019424,0.00022548,2]
[365849089,1749957042433,-177.0323298,0.00022548,2]
[365849090,1749957042442,-573.8932911,0.00022548,2]
[365849091,1749957042451,-153.0,0.00022548,2]
[365849092,1749957042461,-153.0,0.00022548,2]
[365849093,1749957042470,-177.0323298,0.00022548,2]
[365849094,1749957042479,-158.9019424,0.00022548,2]
[365849095,1749957042489,-573.8932911,0.00022548,2]
[365849096,1749957042497,-158.9019424,0.00022548,2]
[365849097,1749957042507,-177.0323298,0.00022548,2]
[365849098,1749957042516,-573.8932911,0.00022548,2]
[365849099,1749957042526,-177.0323298,0.00022548,2]
[365849100,1749957042535,-158.9019424,0.00022548,2]
[365849101,1749957042546,-153.0,0.00022548,2]
[365849102,1749957042558,-1208.7870589,0.00022548,2]
[365849103,1749957042568,-153.0,0.00022548,2]
[365849104,1749957042578,-158.9019424,0.00022548,2]
[365849105,1749957042588,-573.6747916,0.00022548,2]
[365849106,1749957042597,-177.0323298,0.00022548,2]
[365849107,1749957042607,-158.9019424,0.00022548,2]
[365849108,1749957042617,-177.0323298,0.00022548,2]
[365849109,1749957042627,-153.0,0.00022548,2]
[365849110,1749957042640,-153.0,0.00022548,2]
[365849111,1749957042651,-158.9019424,0.00022548,2]
[365849113,1749957042660,-177.0323298,0.00022548,2]
[365849114,1749957042671,-177.0323298,0.00022548,2]
[365849115,1749957042682,-153.0,0.00022548,2]
[365849116,1749957042698,-177.0323298,0.00022548,2]
[365849117,1749957042708,-500.0,0.0002258,2]
[365849118,1749957042718,-406.06299564,0.00022656,2]
[365849119,1749957042727,-1000.0,0.00022721,2]
[365849120,1749957042737,-500.0,0.00022721,2]
[365849121,1749957042748,-500.0,0.00022739,4]
[365849122,1749957042758,-460.0,0.00022739,4]
[365849123,1749957042768,-460.0,0.00022739,4]
[365849124,1749957042779,-460.0,0.00022739,4]
[365849125,1749957042788,-395.5150341,0.00022739,4]
[365849126,1749957042801,-460.0,0.00022739,4]
[365849127,1749957042811,-460.0,0.00022739,4]
[365849128,1749957042821,-460.0,0.00022739,4]
[365849129,1749957042831,-252.99021756,0.00022739,4]
[365849130,1749957042842,-409.88605255,0.00022739,4]
[365849131,1749957042852,-460.0,0.00022739,4]
[365849132,1749957042862,-460.0,0.00022739,4]
[365849133,1749957042872,-460.0,0.00022739,4]
[365849134,1749957042882,-201.97667047,0.00022739,4]
[365849135,1749957042892,-280.0,0.00022739,4]
[365849136,1749957042903,-350.0,0.00022739,4]
[365849137,1749957042913,-559.36562291,0.00022739,4]
[365849138,1749957042924,-460.0,0.00022739,4]
[365849139,1749957042934,-460.0,0.00022739,4]
[365849140,1749957042944,-460.0,0.00022739,4]
[365849141,1749957042953,-627.93,0.00022739,4]
[365849142,1749957042965,-597.34,0.00022739,4]
[365849143,1749957042975,-460.0,0.00022739,4]
[365849144,1749957042985,-460.0,0.00022739,4]
[365849145,1749957042995,-718.27,0.00022739,4]
[365849146,1749957043005,-194.07313543,0.00022739,4]
[365849147,1749957043015,-460.0,0.00022739,4]
[365849148,1749957043025,-460.0,0.00022739,4]
[365849149,1749957043035,-500.0,0.00022739,4]
[365849150,1749957043046,-460.0,0.00022739,4]
[365849151,1749957043056,-460.0,0.00022739,4]
[365849152,1749957043066,-460.0,0.00022739,4]
[365849153,1749957043077,-403.14764831,0.00022739,4]
[365849154,1749957043087,-460.0,0.00022739,4]
[365849155,1749957043096,-754.2,0.00022739,4]
[365849156,1749957043106,-460.0,0.00022739,4]
[365849157,1749957043116,-460.0,0.00022739,4]
[365849158,1749957043127,-311.28447706,0.00022739,4]
[365849159,1749957043137,-460.0,0.00022739,4]
[365849160,1749957043146,-460.0,0.00022739,4]
[365849161,1749957043157,-331.3782252,0.00022739,4]
[365849162,1749957043167,-460.0,0.00022739,4]
[365849163,1749957043177,-385.85264385,0.00022739,4]
[365849164,1749957043187,-460.0,0.00022739,4]
[365849165,1749957043199,-1935.04,0.00022739,4]
[365849166,1749957043209,-489.55,0.00022739,2]
[365849167,1749957043219,-356.22547752,0.00022739,4]